bitfinex/quotes_BTCUSD_20250320
["timestamp","ask_amount","ask_price","bid_price","bid_amount"]
[1742482079644,0.0038773,86424.0,86423.0,0.79236403]
[1742482080098,0.0038773,86424.0,86423.0,0.80336403]
[1742482080340,0.0038773,86424.0,86423.0,0.92828403]
[1742482080677,0.0038773,86424.0,86423.0,0.93428403]
[1742482081280,0.0038773,86424.0,86423.0,0.94028403]
[1742482082044,3e-07,86424.0,86423.0,1.36972488]
[1742482082245,0.00345414,86424.0,86423.0,1.36972488]
[1742482082495,8.4e-07,86430.0,86429.0,0.56251385]
[1742482082626,0.00041613,86430.0,86429.0,0.75928888]
[1742482083812,0.00041613,86430.0,86429.0,1.17418888]
[1742482084321,0.00041613,86430.0,86429.0,1.18018888]
[1742482084469,0.00041613,86430.0,86429.0,1.18618888]
[1742482085689,0.00041613,86430.0,86429.0,1.18018888]
[1742482086707,0.00041613,86430.0,86429.0,1.18618888]
[1742482086907,0.00041613,86430.0,86429.0,1.21118888]
[1742482087109,1.3e-07,86430.0,86429.0,1.21118888]
[1742482087319,1.3e-07,86430.0,86429.0,1.25718888]
[1742482087718,1.3e-07,86430.0,86429.0,1.25118888]
[1742482087947,1.3e-07,86430.0,86429.0,1.25718888]
[1742482088116,1.3e-07,86430.0,86429.0,1.25752788]
[1742482088320,1.3e-07,86430.0,86429.0,1.21798703]
[1742482088521,0.00016963,86430.0,86429.0,1.37986703]
[1742482088782,0.00016963,86430.0,86429.0,1.35486703]
[1742482088981,0.00016963,86430.0,86429.0,1.23698703]
[1742482089224,0.00016963,86430.0,86429.0,1.38840788]
[1742482089410,0.00016963,86430.0,86429.0,1.39440788]
[1742482089753,0.00016963,86430.0,86429.0,1.38840788]
[1742482089952,0.00016963,86430.0,86429.0,1.38240788]
[1742482090192,0.00016963,86430.0,86429.0,1.38840788]
[1742482090396,0.00016963,86430.0,86429.0,1.39440788]
[1742482090767,6.3e-07,86430.0,86429.0,1.39440788]
[1742482095024,6.3e-07,86430.0,86429.0,1.41574315]
[1742482096739,0.001,86449.0,86442.0,0.547937]
[1742482096942,0.001,86449.0,86442.0,1.23379288]
[1742482098107,0.001,86449.0,86442.0,1.26112815]
[1742482099324,0.001,86449.0,86442.0,1.26712815]
[1742482100059,0.001,86449.0,86442.0,1.28984843]
[1742482101150,7e-07,86443.0,86442.0,1.37700154]
[1742482101549,7e-07,86443.0,86442.0,2.92290154]
[1742482102380,7e-07,86443.0,86442.0,2.91690154]
[1742482102605,7e-07,86443.0,86442.0,2.92290154]
[1742482102966,7e-07,86443.0,86442.0,2.91690154]
[1742482103390,7e-07,86443.0,86442.0,2.92290154]
[1742482103734,9.192e-05,86443.0,86442.0,2.92290154]
[1742482103939,9.192e-05,86443.0,86442.0,1.41690154]
[1742482104298,9.192e-05,86443.0,86442.0,1.42290154]
[1742482104912,9.2e-07,86443.0,86442.0,1.41690154]
[1742482105111,9.2e-07,86443.0,86442.0,1.42761822]
[1742482105293,9.2e-07,86443.0,86442.0,1.43361822]
[1742482105875,9.2e-07,86443.0,86442.0,1.30917822]
[1742482106084,9.2e-07,86443.0,86442.0,1.30317822]
[1742482106433,9.2e-07,86443.0,86442.0,1.30917822]
[1742482106635,9.2e-07,86443.0,86442.0,1.30317822]
[1742482107421,9.2e-07,86443.0,86442.0,1.30917822]
[1742482109646,9.2e-07,86443.0,86442.0,2.80917822]
[1742482110834,9.2e-07,86443.0,86442.0,2.93477822]
[1742482111754,9.2e-07,86443.0,86442.0,2.92877822]
[1742482112158,9.2e-07,86443.0,86442.0,2.93477822]
[1742482112874,4.2e-07,86443.0,86442.0,2.92877822]
[1742482113477,4.2e-07,86443.0,86442.0,2.93477822]
[1742482114183,4.2e-07,86443.0,86442.0,1.30317822]
[1742482114526,4.2e-07,86443.0,86442.0,1.30917822]
[1742482116080,4.2e-07,86443.0,86442.0,2.80917822]
[1742482118197,4.2e-07,86443.0,86442.0,2.67237822]
[1742482118408,4.2e-07,86443.0,86442.0,2.80913822]
[1742482118690,4.2e-07,86443.0,86442.0,1.17237822]
[1742482118924,4.2e-07,86443.0,86442.0,1.30913822]
[1742482120675,4.2e-07,86443.0,86442.0,2.80913822]
[1742482122636,4.2e-07,86443.0,86442.0,2.80313822]
[1742482122788,4.2e-07,86443.0,86442.0,2.79713822]
[1742482122993,4.2e-07,86443.0,86442.0,2.80313822]
[1742482123263,4.2e-07,86443.0,86442.0,2.80913822]
[1742482123823,4.2e-07,86443.0,86442.0,1.30913822]
[1742482124399,4.2e-07,86443.0,86442.0,1.30947702]
[1742482124805,4.2e-07,86443.0,86442.0,1.17271702]
[1742482125212,4.2e-07,86443.0,86442.0,1.16200034]
[1742482126351,4.2e-07,86443.0,86442.0,1.15600034]
[1742482126554,4.2e-07,86443.0,86442.0,1.15000034]
[1742482126756,4.2e-07,86443.0,86442.0,1.15600034]
[1742482126958,4.2e-07,86443.0,86442.0,1.16200034]
[1742482130277,4.2e-07,86443.0,86442.0,0.83380638]
[1742482130649,4.2e-07,86443.0,86442.0,1.12780638]
[1742482131633,4.2e-07,86443.0,86442.0,1.11247111]
[1742482133739,0.01814748,86443.0,86442.0,1.11247111]
[1742482134044,0.01814748,86443.0,86442.0,0.99289608]
[1742482134242,0.09804748,86443.0,86442.0,0.2437078]
[1742482134880,0.09804748,86443.0,86442.0,0.2552758]
[1742482135263,0.01814748,86443.0,86442.0,0.37485083]
[1742482135501,0.01814748,86443.0,86442.0,0.38939168]
[1742482135712,0.01814748,86443.0,86442.0,0.68939168]
[1742482136140,0.01814748,86443.0,86442.0,0.66885083]
[1742482136343,0.01814748,86443.0,86442.0,0.5432758]
[1742482136639,0.01814748,86443.0,86442.0,0.5492758]
[1742482136778,0.09944748,86443.0,86442.0,0.0063388]
[1742482136983,0.14774748,86443.0,86442.0,0.0003388]
[1742482137318,0.14774748,86443.0,86442.0,0.2427078]
[1742482137559,0.14774748,86443.0,86442.0,0.2377078]
[1742482137764,0.14774748,86443.0,86442.0,0.2492758]
[1742482138578,0.14774748,86443.0,86442.0,0.2377078]
[1742482139330,0.14774748,86443.0,86442.0,0.2317078]
[1742482139541,0.14774748,86443.0,86442.0,0.2367078]
[1742482139940,0.14774748,86443.0,86442.0,0.2482758]
[1742482140194,0.01814748,86443.0,86442.0,0.2522758]
[1742482140709,0.01814748,86443.0,86442.0,0.0093388]
[1742482140916,0.08000042,86443.0,86442.0,0.0093388]
[1742482141113,0.12530042,86443.0,86442.0,0.2317078]
[1742482141319,0.12530042,86443.0,86442.0,0.2367078]
[1742482141474,0.12530042,86443.0,86442.0,0.2542758]
[1742482141882,0.12530042,86443.0,86442.0,0.2427078]
[1742482142099,0.12530042,86443.0,86442.0,0.0113388]
[1742482142337,0.12530042,86443.0,86442.0,0.2427078]
[1742482142514,0.12530042,86443.0,86442.0,0.0113388]
[1742482142960,0.12530042,86443.0,86442.0,0.2427078]
[1742482143363,0.12530042,86443.0,86442.0,0.2377078]
[1742482143676,0.12530042,86443.0,86442.0,0.2347078]
[1742482143890,0.14345,86443.0,86442.0,0.2462758]
[1742482144027,0.14345,86443.0,86442.0,0.2502758]
[1742482144438,0.01815,86443.0,86442.0,0.2502758]
[1742482144851,0.01815,86443.0,86442.0,0.2462758]
[1742482145281,0.01815,86443.0,86442.0,0.2512758]
[1742482146060,0.01815,86443.0,86442.0,0.2397078]
[1742482146389,0.01815,86443.0,86442.0,0.2367078]
[1742482146611,0.01815,86443.0,86442.0,0.2427078]
[1742482146837,0.09345,86443.0,86442.0,0.0063388]
[1742482147045,0.14065,86443.0,86442.0,0.0003388]
[1742482147269,0.14065,86443.0,86442.0,0.0063388]
[1742482147492,0.14065,86443.0,86442.0,0.0043388]
[1742482147711,0.07684769,86443.0,86429.0,0.000339]
[1742482147915,0.078,86439.0,86429.0,0.000339]
[1742482148151,0.0819,86437.0,86429.0,0.000339]
[1742482148786,0.0819,86437.0,86431.0,0.231396]
[1742482149070,0.0819,86437.0,86429.0,0.000339]
[1742482149071,0.0819,86437.0,86436.0,0.231385]
[1742482150382,0.0819,86437.0,86436.0,0.233385]
[1742482150795,0.0819,86437.0,86436.0,0.235385]
[1742482151412,0.21858,86437.0,86436.0,0.235385]
[1742482152586,0.21858,86437.0,86436.0,0.004]
[1742482153183,0.21858,86437.0,86436.0,0.235385]
[1742482153635,4.2e-07,86443.0,86442.0,0.242937]
[1742482153868,4.2e-07,86443.0,86440.0,0.231374]
[1742482153869,0.13668042,86443.0,86437.0,0.011569]
[1742482154067,0.13668042,86443.0,86442.0,0.231369]
[1742482155002,0.13668042,86443.0,86442.0,0.235369]
[1742482155174,0.13668042,86443.0,86442.0,0.004]
[1742482155405,0.13668042,86443.0,86442.0,0.235369]
[1742482155719,4.2e-07,86443.0,86442.0,0.235369]
[1742482156184,4.2e-07,86443.0,86442.0,0.238369]
[1742482156758,0.01815028,86443.0,86442.0,0.238369]
[1742482157343,0.01815028,86443.0,86442.0,0.007]
[1742482159075,0.01815028,86443.0,86442.0,0.238369]
[1742482159619,0.01815028,86443.0,86442.0,0.2502758]
[1742482160626,4.2e-07,86443.0,86442.0,0.2502758]
[1742482160870,4.2e-07,86443.0,86442.0,0.2462758]
[1742482161187,4.2e-07,86443.0,86442.0,0.2492758]
[1742482161345,4.2e-07,86443.0,86442.0,0.2542758]
[1742482161988,4.2e-07,86443.0,86442.0,0.2427078]
[1742482162563,4.2e-07,86443.0,86442.0,0.0113388]
[1742482163953,0.07750042,86443.0,86442.0,0.0053388]
[1742482164158,0.07750042,86443.0,86442.0,0.0093388]
[1742482164159,0.0956515,86443.0,86442.0,0.0093388]
[1742482164685,0.0956515,86443.0,86442.0,0.0003388]
[1742482164686,1.0957855,86443.0,86442.0,0.0003388]
[1742482164892,1.0957855,86443.0,86399.0,0.000339]
[1742482164893,0.01157,86426.0,86411.0,0.01166417]
[1742482165074,0.22351538,86421.0,86411.0,0.01166417]
[1742482165300,0.22351538,86421.0,86411.0,0.24311517]
[1742482165567,0.01815568,86419.0,86399.0,0.000339]
[1742482165835,0.22351538,86410.0,86399.0,0.000339]
[1742482166087,0.13668,86409.0,86399.0,0.000339]
[1742482166927,0.01815776,86407.0,86399.0,0.000339]
[1742482167187,0.01815776,86407.0,86399.0,0.00075429]
[1742482167415,0.01815776,86407.0,86405.0,0.231467]
[1742482168013,0.01815776,86407.0,86404.0,0.231467]
[1742482168215,0.01815776,86407.0,86399.0,0.00475429]
[1742482168724,0.01815776,86407.0,86403.0,0.231471]
[1742482168899,0.01815776,86407.0,86399.0,0.00475429]
[1742482169355,0.01815776,86407.0,86399.0,0.00375429]
[1742482169743,0.01815776,86407.0,86405.0,0.003]
[1742482169920,0.01815776,86407.0,86399.0,0.00075429]
[1742482170121,0.01815776,86407.0,86405.0,0.003]
[1742482170730,0.01815776,86407.0,86399.0,0.00075429]
[1742482170956,0.01815776,86407.0,86405.0,0.002]
[1742482171360,0.00295051,86406.0,86405.0,0.002]
[1742482171765,0.00295051,86406.0,86399.0,0.00275429]
[1742482171986,0.00295051,86406.0,86405.0,0.0003392]
[1742482173421,0.07835051,86406.0,86405.0,0.0023392]
[1742482173860,0.07835051,86406.0,86405.0,0.0003392]
[1742482174065,0.07835051,86406.0,86405.0,0.0023392]
[1742482174465,0.62943051,86406.0,86405.0,0.0023392]
[1742482174823,0.62943051,86406.0,86405.0,0.0003392]
[1742482175258,0.64100351,86406.0,86405.0,0.0003392]
[1742482175430,1.00284436,86406.0,86405.0,0.0003392]
[1742482175774,0.620555,86400.0,86399.0,0.00075429]
[1742482176111,0.62411844,86400.0,86399.0,0.00075429]
[1742482176530,0.64228143,86400.0,86399.0,0.00075429]
[1742482177140,1.11262228,86400.0,86399.0,0.00075429]
[1742482177548,1.40542728,86400.0,86399.0,0.00075429]
[1742482177719,1.38706128,86400.0,86399.0,0.00075429]
[1742482178827,1.31399828,86400.0,86399.0,0.00075429]
[1742482179486,1.11262228,86400.0,86399.0,0.00075429]
[1742482179995,1.36550031,86400.0,86399.0,0.00075429]
[1742482180248,1.37707731,86400.0,86399.0,0.00075429]
[1742482180674,1.35306928,86400.0,86399.0,0.00075429]
[1742482181135,0.231507,86391.0,86377.0,0.0001696]
[1742482181359,0.22351538,86387.0,86377.0,0.00026082]
[1742482182094,0.00354542,86386.0,86377.0,0.00026082]
[1742482183247,0.0813,86385.0,86377.0,0.00026082]
[1742482183472,0.00348285,86384.0,86377.0,0.00026082]
[1742482183884,0.243111,86381.0,86377.0,0.00026082]
[1742482184088,0.243117,86378.0,86377.0,0.00026082]
[1742482184289,0.38331985,86378.0,86377.0,0.00026082]
[1742482184711,0.37174285,86378.0,86377.0,0.00026082]
[1742482184914,0.14020285,86378.0,86377.0,0.00026082]
[1742482185548,0.14878654,86378.0,86377.0,0.00026082]
[1742482185921,0.15078654,86378.0,86377.0,0.00026082]
[1742482186711,0.15178654,86378.0,86377.0,0.00026082]
[1742482187768,0.38332654,86378.0,86377.0,0.00026082]
[1742482188226,0.15178654,86378.0,86377.0,0.00026082]
[1742482189375,0.14320285,86378.0,86377.0,0.00026082]
[1742482191303,0.14120285,86378.0,86377.0,0.00026082]
[1742482191475,0.14220285,86378.0,86377.0,0.00026082]
[1742482191690,0.14120285,86378.0,86377.0,0.00026082]
[1742482191893,0.14220285,86378.0,86377.0,0.00026082]
[1742482192035,0.14120285,86378.0,86377.0,0.00026082]
[1742482192870,0.00448285,86378.0,86377.0,0.00026082]
[1742482193096,0.14120285,86378.0,86377.0,0.23180382]
[1742482193256,0.14120285,86378.0,86377.0,0.00026082]
[1742482193453,0.14020285,86378.0,86377.0,0.00026082]
[1742482193936,0.00348285,86378.0,86377.0,0.3272962]
[1742482194142,0.00348285,86378.0,86377.0,0.32498082]
[1742482194372,0.01139887,86410.0,86408.0,0.231458]
[1742482194571,0.0089061,86417.0,86416.0,0.011571]
[1742482194983,0.034802,86421.0,86419.0,0.231428]
[1742482195183,0.034802,86421.0,86420.0,0.011571]
[1742482195386,0.0001696,86429.0,86424.0,0.242987]
[1742482195527,0.0001696,86429.0,86424.0,0.231417]
[1742482196123,0.0001696,86429.0,86428.0,0.231406]
[1742482196790,0.0001696,86429.0,86424.0,0.231417]
[1742482196961,0.0001696,86429.0,86420.0,9.122e-05]
[1742482197364,0.01815589,86427.0,86420.0,9.122e-05]
[1742482198529,0.13668,86426.0,86420.0,0.00209122]
[1742482198678,0.13668,86426.0,86420.0,0.00409122]
[1742482199656,0.01815589,86427.0,86426.0,0.242981]
[1742482200255,0.01815589,86427.0,86426.0,0.231411]
[1742482201274,0.01815589,86427.0,86426.0,0.242981]
[1742482201603,0.01815589,86427.0,86426.0,0.244981]
[1742482201809,0.0001696,86429.0,86428.0,0.242976]
[1742482202580,0.0001696,86429.0,86428.0,0.231406]
[1742482202924,0.0001696,86429.0,86426.0,0.246981]
[1742482202925,0.0001696,86429.0,86426.0,0.233411]
[1742482203073,0.0001696,86429.0,86426.0,0.002]
[1742482203277,0.01157,86427.0,86426.0,0.002]
[1742482203685,0.13664,86427.0,86426.0,0.002]
[1742482203893,0.37962,86427.0,86404.0,0.231469]
[1742482204124,0.37962,86427.0,86398.0,0.25451416]
[1742482204125,0.01157,86423.0,86398.0,0.25451416]
[1742482204329,0.242996,86421.0,86393.0,0.011575]
[1742482204482,0.55116,86426.0,86407.0,0.011573]
[1742482204686,0.55116,86426.0,86412.0,0.231448]
[1742482204890,0.55116,86426.0,86411.0,0.011572]
[1742482204891,0.01815848,86421.0,86411.0,0.011572]
[1742482205118,0.01815848,86421.0,86419.0,0.231428]
[1742482206124,0.01815848,86421.0,86417.0,0.25485244]
[1742482206125,0.01815848,86421.0,86417.0,0.02341744]
[1742482206503,0.01815848,86421.0,86407.0,0.231461]
[1742482206710,0.01815848,86421.0,86410.0,0.231452]
[1742482207113,0.01815848,86421.0,86408.0,0.02373051]
[1742482207315,0.01815848,86421.0,86412.0,0.231448]
[1742482207555,0.01815848,86421.0,86420.0,0.00309122]
[1742482208053,0.01815848,86421.0,86420.0,0.24508922]
[1742482208254,0.01815848,86421.0,86420.0,0.24308922]
[1742482208456,0.01815848,86421.0,86420.0,0.24508922]
[1742482208610,0.01815848,86421.0,86420.0,0.24608922]
[1742482209014,0.01815848,86421.0,86420.0,0.24508922]
[1742482209226,0.01815848,86421.0,86420.0,0.24708922]
[1742482209938,0.01815848,86421.0,86420.0,0.24508922]
[1742482210146,0.01815848,86421.0,86420.0,0.24708922]
[1742482210667,0.01815848,86421.0,86420.0,0.24308922]
[1742482210873,0.01815848,86421.0,86420.0,9.122e-05]
[1742482211072,0.01815848,86421.0,86420.0,0.00309122]
[1742482211455,0.01915848,86421.0,86420.0,0.00609122]
[1742482211631,0.01915848,86421.0,86420.0,0.00309122]
[1742482211784,0.01915848,86421.0,86420.0,9.122e-05]
[1742482211988,0.01815848,86421.0,86420.0,9.122e-05]
[1742482212391,0.01815848,86421.0,86420.0,0.00409122]
[1742482212593,0.231413,86426.0,86420.0,0.00409122]
[1742482213007,0.0117397,86427.0,86420.0,0.00409122]
[1742482213008,0.0001697,86427.0,86420.0,0.00409122]
[1742482213618,0.2315787,86427.0,86420.0,0.00409122]
[1742482213819,0.0001697,86427.0,86420.0,9.122e-05]
[1742482214062,0.0001697,86427.0,86420.0,0.00309122]
[1742482214386,0.0001697,86427.0,86420.0,0.00609122]
[1742482214595,0.0001697,86427.0,86420.0,9.122e-05]
[1742482214799,0.2315787,86427.0,86420.0,0.00209122]
[1742482214999,0.01157,86425.0,86420.0,0.00209122]
[1742482215214,0.231416,86425.0,86420.0,0.00209122]
[1742482215540,0.01815778,86424.0,86420.0,0.00209122]
[1742482216185,0.011571,86421.0,86420.0,0.00209122]
[1742482216384,0.01815778,86424.0,86420.0,0.00209122]
[1742482216752,0.13656,86423.0,86420.0,0.00209122]
[1742482216958,0.13656,86423.0,86420.0,0.00109122]
[1742482217157,0.13656,86423.0,86420.0,9.122e-05]
[1742482217353,0.13656,86423.0,86420.0,0.00209122]
[1742482217579,0.01815778,86424.0,86423.0,0.231419]
[1742482217861,0.15471778,86424.0,86420.0,9.122e-05]
[1742482218054,0.15471778,86424.0,86420.0,0.00109122]
[1742482218554,0.15471778,86424.0,86423.0,0.231419]
[1742482219367,0.15471778,86424.0,86423.0,0.242989]
[1742482219814,0.15471778,86424.0,86423.0,0.231419]
[1742482220024,0.15471778,86424.0,86422.0,0.231422]
[1742482220178,0.15471778,86424.0,86423.0,0.231419]
[1742482220383,0.01815778,86424.0,86423.0,0.325089]
[1742482220581,0.0001697,86427.0,86426.0,0.242981]
[1742482221818,0.0001697,86427.0,86426.0,0.244981]
[1742482222631,0.0001697,86427.0,86426.0,0.242981]
[1742482222875,0.0001697,86427.0,86426.0,0.26665104]
[1742482223122,0.0001697,86427.0,86425.0,0.231413]
[1742482223331,0.0001697,86427.0,86426.0,0.231411]
[1742482223550,0.0011697,86427.0,86426.0,0.234411]
[1742482223733,0.0011697,86427.0,86426.0,0.003]
[1742482224195,0.0001697,86427.0,86426.0,0.005]
[1742482224410,0.2441487,86427.0,86426.0,0.005]
[1742482224541,0.0011697,86427.0,86426.0,0.005]
[1742482224746,0.2441487,86427.0,86426.0,0.005]
[1742482225006,0.5431487,86427.0,86426.0,0.005]
[1742482225332,0.231422,86422.0,86420.0,9.122e-05]
[1742482225515,0.231422,86422.0,86393.0,0.0489]
[1742482225516,0.011573,86403.0,86380.0,0.0458]
[1742482225665,0.231486,86398.0,86395.0,4.329e-05]
[1742482225869,0.243066,86396.0,86395.0,4.329e-05]
[1742482226071,1.038674,86396.0,86395.0,4.329e-05]
[1742482226272,1.06175042,86396.0,86395.0,4.329e-05]
[1742482226483,1.07991379,86396.0,86395.0,4.329e-05]
[1742482226875,0.011575,86386.0,86372.0,0.0001698]
[1742482227077,0.231524,86384.0,86372.0,0.0001698]
[1742482227378,0.782569,86383.0,86372.0,0.0001698]
[1742482227571,0.55104,86383.0,86372.0,0.0001698]
[1742482227841,0.782568,86383.0,86380.0,0.001]
[1742482228034,0.01816467,86382.0,86372.0,0.0001698]
[1742482228799,0.00289555,86381.0,86372.0,0.0001698]
[1742482230391,0.00289555,86381.0,86375.0,0.231546]
[1742482230603,0.00289555,86381.0,86372.0,0.0001698]
[1742482231931,0.00289555,86381.0,86378.0,0.0013394]
[1742482233653,0.011576,86379.0,86378.0,0.0013394]
[1742482233888,0.01394164,86379.0,86378.0,0.0013394]
[1742482234121,0.08944164,86379.0,86378.0,0.0013394]
[1742482234296,0.63215752,86379.0,86378.0,0.0013394]
[1742482234503,0.81258249,86379.0,86378.0,0.0013394]
[1742482234701,0.81258249,86379.0,86378.0,0.0003394]
[1742482235531,0.72254164,86379.0,86378.0,0.0003394]
[1742482236428,0.84956564,86379.0,86378.0,0.0003394]
[1742482236714,0.86114164,86379.0,86378.0,0.0003394]
[1742482236964,0.87930806,86379.0,86378.0,0.0003394]
[1742482237577,0.88130806,86379.0,86378.0,0.0003394]
[1742482237727,0.87930806,86379.0,86378.0,0.0003394]
[1742482238094,0.88130806,86379.0,86378.0,0.0003394]
[1742482238819,0.88330806,86379.0,86378.0,0.0003394]
[1742482239975,1.01742394,86379.0,86378.0,0.0003394]
[1742482240334,0.89784891,86379.0,86378.0,0.0003394]
[1742482240745,0.89784891,86379.0,86372.0,0.0001698]
[1742482240746,0.54313,86373.0,86372.0,0.0001698]
[1742482240950,0.54313,86373.0,86364.0,0.2315]
[1742482240951,0.543153,86365.0,86364.0,0.2315]
[1742482241180,1.164453,86365.0,86364.0,0.23154326]
[1742482241336,1.1667692,86365.0,86364.0,0.23154326]
[1742482242928,1.1757692,86365.0,86364.0,0.23154326]
[1742482244057,1.19393907,86365.0,86364.0,0.23154326]
[1742482244678,1.20284604,86365.0,86364.0,0.23154326]
[1742482245445,1.20284604,86365.0,86364.0,0.23171296]
[1742482245887,1.33261154,86365.0,86364.0,0.23171296]
[1742482246290,1.57887489,86365.0,86364.0,0.08458003]
[1742482246466,1.50921589,86365.0,86364.0,0.02708697]
[1742482247237,1.50921589,86365.0,86355.0,0.0003388]
[1742482247238,0.543178,86356.0,86355.0,0.0003388]
[1742482247437,1.10919885,86356.0,86355.0,0.00046311]
[1742482247643,1.10919885,86356.0,86355.0,0.00012431]
[1742482247644,1.62909974,86356.0,86355.0,0.00012431]
[1742482247793,1.62909974,86356.0,86342.0,0.000339]
[1742482247794,0.543215,86343.0,86342.0,0.000339]
[1742482247954,1.18395585,86343.0,86342.0,0.000339]
[1742482248160,1.18625244,86343.0,86342.0,0.000339]
[1742482248357,1.19779218,86343.0,86342.0,0.000339]
[1742482248811,1.32625098,86343.0,86342.0,0.000339]
[1742482249007,1.37325098,86343.0,86342.0,0.000339]
[1742482249183,1.25767595,86343.0,86342.0,0.000339]
[1742482249418,1.27585269,86343.0,86342.0,0.000339]
[1742482249819,0.011584,86324.0,86318.0,0.0003388]
[1742482250089,0.6882,86323.0,86318.0,0.00075455]
[1742482250303,0.69041239,86323.0,86318.0,0.00075455]
[1742482250511,0.24328,86320.0,86318.0,0.00075455]
[1742482250715,0.243282,86319.0,86318.0,0.00075455]
[1742482250919,0.96642285,86319.0,86318.0,0.00075455]
[1742482251144,0.96863384,86319.0,86318.0,0.00075455]
[1742482251994,0.96963384,86319.0,86318.0,0.00075455]
[1742482252128,0.97063384,86319.0,86318.0,0.00075455]
[1742482253569,0.97928596,86319.0,86318.0,0.00075455]
[1742482253775,0.99746573,86319.0,86318.0,0.00075455]
[1742482254379,0.99646573,86319.0,86318.0,0.00075455]
[1742482254743,0.99946573,86319.0,86318.0,0.00075455]
[1742482254948,0.543297,86314.0,86288.0,0.0451]
[1742482255266,0.55783785,86314.0,86313.0,0.01325384]
[1742482255464,0.96849911,86314.0,86313.0,0.01325384]
[1742482255880,0.548302,86312.0,86277.0,0.0001696]
[1742482256127,0.243359,86292.0,86277.0,0.0001696]
[1742482256268,1.65485985,86292.0,86291.0,0.00046367]
[1742482256471,1.65689844,86292.0,86291.0,0.00046367]
[1742482256792,1.67508388,86292.0,86291.0,0.00046367]
[1742482257019,0.55792785,86282.0,86277.0,0.0001696]
[1742482257371,0.56008649,86282.0,86277.0,0.0001696]
[1742482257619,0.571741,86282.0,86277.0,0.0001696]
[1742482258188,0.58992941,86282.0,86277.0,0.0001696]
[1742482258868,0.59392941,86282.0,86277.0,0.0001696]
[1742482259084,0.59892941,86282.0,86277.0,0.0001696]
[1742482259337,1.00752941,86282.0,86277.0,0.0001696]
[1742482259549,1.70099911,86282.0,86281.0,1e-06]
[1742482259766,1.70099911,86282.0,86251.0,0.001]
[1742482259767,0.54346,86256.0,86251.0,0.001]
[1742482259970,0.54346,86256.0,86255.0,0.00029427]
[1742482259971,1.65512085,86256.0,86255.0,0.00029427]
[1742482260167,1.65726628,86256.0,86255.0,0.00029427]
[1742482260603,1.67546041,86256.0,86255.0,0.00029427]
[1742482260800,1.66596979,86256.0,86255.0,0.00029427]
[1742482261849,1.66896979,86256.0,86255.0,0.00029427]
[1742482262344,1.66996979,86256.0,86255.0,0.00029427]
[1742482262537,1.29282979,86256.0,86255.0,0.00029427]
[1742482262711,1.40800894,86256.0,86255.0,0.00029427]
[1742482263125,1.09930543,86256.0,86255.0,0.00029427]
[1742482263505,0.96258543,86256.0,86255.0,0.00029427]
[1742482263703,1.11749775,86256.0,86255.0,0.00029427]
[1742482264135,1.11749775,86256.0,86255.0,0.07909427]
[1742482264294,0.71089775,86256.0,86255.0,0.07909427]
[1742482264525,0.57217775,86256.0,86255.0,0.07909427]
[1742482264726,0.71189775,86256.0,86255.0,0.07909427]
[1742482265150,0.70889775,86256.0,86255.0,0.07909427]
[1742482266203,0.15705775,86256.0,86255.0,0.07909427]
[1742482266615,0.15491232,86256.0,86255.0,0.07909427]
[1742482266821,0.15491232,86256.0,86255.0,0.09068727]
[1742482267022,0.15491232,86256.0,86255.0,0.07909427]
[1742482267629,0.15491232,86256.0,86255.0,0.09068727]
[1742482267827,0.15491232,86256.0,86255.0,0.09300585]
[1742482267828,0.01819232,86256.0,86255.0,0.09300585]
[1742482268003,0.01819232,86256.0,86255.0,0.09068727]
[1742482268430,0.01919232,86256.0,86255.0,0.09068727]
[1742482268632,0.01819232,86256.0,86255.0,0.09068727]
[1742482268811,0.01819232,86256.0,86255.0,0.39068727]
[1742482269033,0.01919232,86256.0,86255.0,0.39068727]
[1742482269382,0.02019232,86256.0,86255.0,0.39068727]
[1742482269901,0.01165451,86282.0,86276.0,0.243404]
[1742482269902,0.0003398,86277.0,86276.0,0.243404]
[1742482270116,0.0003398,86277.0,86276.0,0.369804]
[1742482271151,0.0003398,86277.0,86276.0,0.1264]
[1742482271283,0.0003398,86277.0,86276.0,0.13799]
[1742482271484,0.0003398,86277.0,86276.0,0.1403079]
[1742482271684,0.0003398,86277.0,86276.0,0.13899]
[1742482271886,0.0013398,86277.0,86276.0,0.13899]
[1742482272309,0.0013398,86277.0,86276.0,0.13799]
[1742482272522,0.0023398,86277.0,86276.0,0.14430785]
[1742482272931,0.0023398,86277.0,86276.0,0.16556795]
[1742482273560,0.0023398,86277.0,86276.0,0.47962681]
[1742482273757,0.0023398,86277.0,86276.0,0.47730899]
[1742482273965,0.0023398,86277.0,86276.0,0.59688402]
[1742482274167,8e-07,86277.0,86276.0,0.61642487]
[1742482274827,0.13668,86302.0,86276.0,0.61642487]
[1742482274828,0.13668,86302.0,86301.0,0.243334]
[1742482275033,0.13668,86302.0,86301.0,0.231747]
[1742482275254,0.13879025,86302.0,86291.0,0.0774]
[1742482275493,0.00211025,86301.0,86291.0,0.0754]
[1742482275696,0.00211025,86301.0,86299.0,0.231751]
[1742482275911,0.13668,86302.0,86295.0,0.231763]
[1742482276320,0.13668,86302.0,86301.0,0.007]
[1742482276492,0.13668,86302.0,86301.0,0.004]
[1742482277696,0.13668,86302.0,86296.0,0.231759]
[1742482278110,0.13668,86302.0,86297.0,0.231757]
[1742482278313,0.13668,86302.0,86295.0,0.002]
[1742482278532,0.01170974,86307.0,86301.0,0.002]
[1742482278837,0.3,86305.0,86301.0,0.002]
[1742482279391,0.3,86305.0,86291.0,0.231773]
[1742482280032,0.3,86305.0,86289.0,0.231778]
[1742482280339,0.3,86305.0,86290.0,0.231774]
[1742482280544,0.3,86305.0,86293.0,0.231768]
[1742482280742,0.3,86305.0,86288.0,0.231776]
[1742482280743,0.3,86305.0,86290.0,0.231775]
[1742482280974,0.3,86305.0,86291.0,0.0001699]
[1742482281326,0.3003398,86305.0,86291.0,0.0001699]
[1742482281486,0.0003398,86305.0,86291.0,0.0001699]
[1742482281706,0.13664,86304.0,86291.0,0.2319429]
[1742482281907,0.13664,86304.0,86291.0,0.0001699]
[1742482282331,0.00211613,86303.0,86291.0,0.0001699]
[1742482283277,0.231757,86297.0,86291.0,0.0001699]
[1742482283502,0.55192,86296.0,86291.0,0.0001699]
[1742482283691,0.55403094,86296.0,86291.0,0.0001699]
[1742482284207,0.13664,86295.0,86292.0,0.231771]
[1742482284441,0.13664,86295.0,86293.0,0.231767]
[1742482284666,0.01139048,86307.0,86295.0,0.011588]
[1742482284842,0.01139048,86307.0,86304.0,0.231738]
[1742482285143,0.1369798,86305.0,86304.0,0.231738]
[1742482286412,0.15516112,86305.0,86304.0,0.231738]
[1742482286620,0.15516112,86305.0,86304.0,0.243324]
[1742482286819,0.15516112,86305.0,86290.0,0.0452]
[1742482287020,0.15516112,86305.0,86282.0,0.0802]